bitfinex-derivatives/quotes_BTCF0:USTF0_20241120
["timestamp","ask_amount","ask_price","bid_price","bid_amount"]
[1732127646357,0.0212071,94232.0,94231.0,1.5]
[1732127646741,0.3395671,94232.0,94202.0,0.005]
[1732127646943,0.25775982,94232.0,94231.0,0.3608]
[1732127647141,0.25775982,94232.0,94193.0,0.005]
[1732127647142,0.053007,94219.0,94211.0,0.005]
[1732127647356,0.053008,94217.0,94206.0,0.3608]
[1732127647541,0.053017,94200.0,94191.0,0.005]
[1732127647743,0.23655272,94207.0,94191.0,0.01038928]
[1732127647945,0.3608,94201.0,94191.0,0.01038928]
[1732127648239,0.053026,94184.0,94183.0,9.717e-05]
[1732127648455,0.413824,94188.0,94183.0,0.01048645]
[1732127648640,0.3608,94188.0,94183.0,0.01048645]
[1732127648848,0.3608,94188.0,94184.0,0.31852]
[1732127649150,0.3608,94225.0,94203.0,0.053015]
[1732127649458,0.3608,94236.0,94211.0,0.3608]
[1732127649645,0.3608,94236.0,94193.0,0.005]
[1732127649646,0.3608,94236.0,94216.0,0.23655272]
[1732127649952,0.3608,94236.0,94217.0,0.053007]
[1732127650158,0.3608,94225.0,94222.0,0.23655272]
[1732127650342,0.3608,94233.0,94222.0,0.23655272]
[1732127650546,0.02118908,94248.0,94240.0,0.052994]
[1732127650746,0.02118908,94264.0,94246.0,0.23655272]
[1732127650945,0.02118908,94264.0,94260.0,0.23655272]
[1732127651148,0.02118908,94264.0,94240.0,0.3608]
[1732127651149,0.3608,94269.0,94243.0,0.23655272]
[1732127651347,0.3608,94269.0,94257.0,0.28953772]
[1732127651556,0.02118908,94261.0,94257.0,0.23655272]
[1732127652045,0.3608,94281.0,94260.0,1.5]
[1732127652244,0.3608,94281.0,94276.0,0.23655272]
[1732127652445,0.3608,94293.0,94276.0,0.23655272]
[1732127652863,0.3608,94293.0,94264.0,0.005]
[1732127653041,0.3608,94275.0,94261.0,0.23655272]
[1732127653242,0.26617577,94284.0,94274.0,0.02118908]
[1732127653457,0.3608,94276.0,94260.0,0.00144]
[1732127653651,0.3608,94276.0,94258.0,0.02118908]
[1732127653852,0.22616344,94268.0,94248.0,1.5]
[1732127654062,0.3608,94251.0,94248.0,0.00144]
[1732127654242,0.3608,94255.0,94247.0,0.02117877]
[1732127654444,0.052988,94251.0,94247.0,0.02117877]
[1732127654745,0.052988,94251.0,94231.0,0.02117877]
[1732127654746,0.052998,94233.0,94232.0,0.047343]
[1732127654949,0.052998,94233.0,94192.0,0.0054]
[1732127654950,0.053,94232.0,94192.0,0.0054]
[1732127655251,0.361449,94214.0,94213.0,7.7e-07]
[1732127655549,0.7174,94214.0,94173.0,0.0054]
[1732127655751,0.23655272,94180.0,94153.0,0.3662]
[1732127655950,0.053047,94148.0,94145.0,0.00013131]
[1732127656145,0.053047,94146.0,94145.0,0.00013131]
[1732127656346,0.053039,94162.0,94145.0,0.00013131]
[1732127656568,0.3608,94167.0,94145.0,0.00013131]
[1732127656860,7.637e-05,94161.0,94145.0,0.00013131]
[1732127657048,0.05304,94160.0,94145.0,0.00013131]
[1732127657252,0.3608,94146.0,94145.0,0.00013131]
[1732127657659,0.053056,94132.0,94128.0,0.3608]
[1732127657847,0.053052,94139.0,94128.0,0.3608]
[1732127658155,0.3608,94146.0,94124.0,0.3608]
[1732127658353,0.3608,94146.0,94139.0,0.053051]
[1732127658549,0.3608,94146.0,94109.0,0.02117877]
[1732127658550,0.053049,94144.0,94117.0,0.28961672]
[1732127658851,0.053052,94138.0,94124.0,0.3608]
[1732127659058,0.3608,94138.0,94111.0,0.0442]
[1732127659263,0.053067,94111.0,94109.0,0.01596]
[1732127659446,0.23655272,94115.0,94105.0,0.00010163]
[1732127659447,0.05307,94106.0,94105.0,0.00010163]
[1732127659764,0.053087,94076.0,94071.0,0.01596]
[1732127659957,0.053089,94072.0,94071.0,0.01596]
[1732127660161,0.053089,94072.0,94071.0,1.5]
[1732127660461,0.732809,94072.0,94071.0,1.5]
[1732127660653,0.38201477,94072.0,94071.0,1.5]
[1732127660854,0.70105142,94072.0,94071.0,1.5]
[1732127661155,0.38213142,94072.0,94071.0,1.5]
[1732127661753,0.68213142,94072.0,94071.0,1.5]
[1732127661963,0.98213142,94072.0,94071.0,1.5]
[1732127662153,0.6608,94072.0,94071.0,1.5]
[1732127662664,0.68201477,94072.0,94071.0,1.5]
[1732127662865,0.73510377,94072.0,94071.0,1.5]
[1732127663060,0.68214151,94072.0,94043.0,0.00010893]
[1732127663249,0.68214151,94072.0,94049.0,0.053102]
[1732127663250,0.3608,94067.0,94049.0,0.053102]
[1732127663450,0.3608,94067.0,94046.0,0.3417]
[1732127663655,0.3608,94056.0,94046.0,0.3417]
[1732127663950,0.3608,94067.0,94046.0,0.3417]
[1732127663951,0.3608,94057.0,94055.0,1.5]
[1732127664361,0.3608,94057.0,94056.0,0.053098]
[1732127664960,0.3608,94057.0,94055.0,1.50144]
[1732127665168,0.3608,94057.0,94055.0,1.5]
[1732127665668,0.3608,94067.0,94056.0,0.31896]
[1732127665967,7.4e-07,94072.0,94071.0,0.05309]
[1732127666268,0.0054,94112.0,94100.0,0.053073]
[1732127666584,0.053063,94120.0,94088.0,0.23655272]
[1732127666752,0.3608,94114.0,94088.0,0.23655272]
[1732127666958,0.3608,94113.0,94102.0,0.23655272]
[1732127667164,0.00010792,94112.0,94111.0,0.053067]
[1732127667464,0.3608,94147.0,94111.0,0.053067]
[1732127667654,0.0054,94148.0,94145.0,0.053048]
[1732127667655,0.3,94148.0,94145.0,0.053048]
[1732127667859,0.353046,94148.0,94147.0,1.5]
[1732127668060,0.3,94148.0,94147.0,1.5]
[1732127668465,0.6608,94148.0,94147.0,1.5]
[1732127668858,0.97944,94148.0,94147.0,1.5]
[1732127669063,0.6608,94148.0,94147.0,1.5]
[1732127669454,0.413846,94148.0,94147.0,1.5]
[1732127669655,0.053046,94148.0,94147.0,1.5]
[1732127669866,0.3608,94167.0,94147.0,1.5]
[1732127670063,0.3608,94162.0,94147.0,1.5]
[1732127670267,0.3608,94151.0,94147.0,1.5]
[1732127670660,0.053045,94150.0,94147.0,1.5]
[1732127670871,0.3608,94162.0,94149.0,0.053045]
[1732127671165,0.3608,94167.0,94147.0,1.73799272]
[1732127671365,0.3608,94167.0,94156.0,0.053041]
[1732127671577,0.3608,94157.0,94147.0,1.73655272]
[1732127671874,0.3608,94157.0,94155.0,0.053042]
[1732127672174,0.3608,94157.0,94147.0,1.73655272]
[1732127672175,0.3608,94167.0,94163.0,0.053038]
[1732127672556,0.3,94178.0,94159.0,0.23655272]
[1732127672865,0.3,94178.0,94172.0,1.5]
[1732127673266,0.3,94178.0,94172.0,1.553032]
[1732127673474,0.4608,94200.0,94174.0,0.23655272]
[1732127673678,0.053021,94193.0,94180.0,0.053028]
[1732127673862,0.1,94200.0,94180.0,0.053028]
[1732127673863,0.053022,94191.0,94180.0,0.053028]
[1732127674065,0.1,94200.0,94172.0,1.50152]
[1732127674362,0.1,94200.0,94161.0,0.59735272]
[1732127674363,0.3608,94173.0,94162.0,0.0049]
[1732127674670,0.053049,94144.0,94143.0,0.0049]
[1732127674862,0.053049,94144.0,94117.0,0.00010265]
[1732127674863,0.053054,94135.0,94119.0,0.0049]
[1732127675059,0.413854,94135.0,94117.0,0.00010265]
[1732127675268,0.053063,94118.0,94117.0,0.00010265]
[1732127675468,0.053063,94118.0,94117.0,1.50010265]
[1732127675469,0.413863,94118.0,94117.0,1.50010265]
[1732127675674,0.053076,94095.0,94094.0,0.303913]
[1732127675966,0.413876,94095.0,94094.0,0.303913]
[1732127676269,0.413376,94095.0,94094.0,0.303913]
[1732127676465,0.732216,94095.0,94094.0,0.303913]
[1732127676664,0.7323167,94095.0,94094.0,1.803913]
[1732127676870,0.6797407,94095.0,94070.0,0.0049]
[1732127677061,0.053093,94066.0,94059.0,0.63784101]
[1732127677682,0.31901106,94065.0,94059.0,0.63784101]
[1732127677858,9.106e-05,94065.0,94059.0,0.63784101]
[1732127678061,0.61901106,94065.0,94059.0,0.63784101]
[1732127678365,0.053098,94056.0,94053.0,0.51846656]
[1732127678572,0.36079974,94051.0,94035.0,0.70143711]
[1732127678769,0.413909,94037.0,94035.0,0.70143711]
[1732127678959,0.053119,94019.0,94018.0,0.0448]
[1732127679158,0.774719,94019.0,94018.0,0.0448]
[1732127679360,0.053121,94016.0,94000.0,0.1]
[1732127679561,0.053121,94016.0,94006.0,1.5]
[1732127679759,0.053124,94011.0,94006.0,1.50144]
[1732127679968,0.3608,94008.0,94006.0,1.5]
[1732127680175,0.2258,94008.0,94006.0,1.553126]
[1732127680373,0.00010713,94016.0,94014.0,0.053121]
[1732127680571,0.3608,94046.0,94014.0,0.053121]
[1732127680572,0.3608,94046.0,94014.0,0.31709136]
[1732127680864,0.3608,94046.0,94009.0,0.3608]
[1732127680865,0.053108,94039.0,94022.0,0.053117]
[1732127681067,0.3608,94046.0,94037.0,0.053109]
[1732127681263,0.0103,94074.0,94036.0,0.3608]
[1732127681264,0.3608,94068.0,94039.0,0.053108]
[1732127681466,8.186e-05,94040.0,94039.0,0.452308]
[1732127681663,8.186e-05,94040.0,94039.0,0.053108]
[1732127682068,0.3608,94068.0,94039.0,1.819]
[1732127682372,0.053088,94075.0,94058.0,0.37018836]
[1732127682576,0.3608,94079.0,94058.0,0.31709136]
[1732127682768,0.053082,94084.0,94068.0,0.053091]
[1732127683164,0.3608,94085.0,94065.0,0.3608]
[1732127683369,0.07431938,94093.0,94075.0,0.053087]
[1732127683562,0.3608,94087.0,94065.0,0.3608]
[1732127683761,0.3608,94070.0,94057.0,0.3608]
[1732127683974,0.3608,94062.0,94048.0,0.0001015]
[1732127684476,0.3608,94065.0,94048.0,0.0001015]
[1732127684770,0.3608,94063.0,94048.0,0.0001015]
[1732127684970,0.3608,94055.0,94048.0,0.0001015]
[1732127685369,0.3608,94063.0,94048.0,0.0001015]
[1732127685570,0.3608,94054.0,94048.0,0.0001015]
[1732127685775,0.053102,94049.0,94048.0,0.0001015]
[1732127686270,0.372102,94049.0,94048.0,0.0001015]
[1732127686464,0.053102,94049.0,94048.0,0.0001015]
[1732127686977,0.372102,94049.0,94048.0,0.0001015]
[1732127687168,0.732902,94049.0,94048.0,0.0001015]
[1732127687369,0.053115,94027.0,94024.0,0.0049]
[1732127687570,0.053119,94020.0,94006.0,0.0426]
[1732127687772,0.3608,94033.0,94006.0,0.0426]
[1732127687972,0.053126,94007.0,94006.0,0.0426]
[1732127688175,0.053126,94008.0,94006.0,0.0426]
[1732127688371,0.00011112,94007.0,94006.0,0.0426]
[1732127689077,0.31923112,94007.0,93982.0,0.00498629]
[1732127689278,0.413929,94001.0,93982.0,0.00498629]
[1732127689468,0.413929,94001.0,93982.0,8.629e-05]
[1732127689671,0.733089,94001.0,93982.0,8.629e-05]
[1732127689875,0.67996,94001.0,93982.0,8.629e-05]
[1732127690071,0.413939,93983.0,93982.0,8.629e-05]
[1732127690378,0.41402031,93983.0,93982.0,8.629e-05]
[1732127690577,0.73322031,93983.0,93982.0,8.629e-05]
[1732127691483,8.131e-05,93983.0,93982.0,8.629e-05]
[1732127691879,0.05322031,93983.0,93982.0,8.629e-05]
[1732127692080,0.37242031,93983.0,93982.0,8.629e-05]
[1732127692475,8.131e-05,93983.0,93982.0,0.05322629]
[1732127694275,0.0049,94003.0,93996.0,0.053132]
[1732127694578,0.0049,94020.0,93998.0,0.3608]
[1732127694776,0.3608,94037.0,94007.0,0.3608]
[1732127694777,0.053123,94013.0,94007.0,0.3608]
[1732127695274,0.02125278,94034.0,94013.0,0.053122]
[1732127695582,0.418799,94055.0,94007.0,0.3608]
[1732127695583,0.05311,94036.0,94028.0,0.053114]
[1732127695784,0.02125278,94050.0,94025.0,0.3608]
[1732127696080,0.02125278,94050.0,94034.0,0.3608]
[1732127696081,0.053105,94044.0,94034.0,0.3608]
[1732127696285,0.02125278,94050.0,94037.0,0.053109]
[1732127696479,0.053105,94044.0,94034.0,0.3608]
[1732127696679,0.35716,94060.0,94042.0,0.3608]
[1732127696878,0.0049,94067.0,94042.0,0.3608]
[1732127697186,0.3,94071.0,94060.0,0.3608]
[1732127697482,0.3,94071.0,94070.0,0.3608]
[1732127697483,0.1135,94071.0,94070.0,0.3608]
[1732127697872,0.0049,94091.0,94070.0,0.3608]
[1732127698176,0.02125278,94104.0,94079.0,0.053085]
[1732127698177,0.05308,94088.0,94079.0,0.053085]
[1732127698380,0.02615278,94104.0,94072.0,0.053089]
[1732127698582,0.0288703,94099.0,94081.0,0.3608]
[1732127698779,0.053079,94090.0,94081.0,0.3608]
[1732127699085,0.05308,94088.0,94081.0,0.3608]
[1732127699286,0.02125278,94104.0,94081.0,0.3608]
[1732127699287,0.053076,94096.0,94081.0,0.3608]
[1732127699483,0.053076,94096.0,94095.0,0.3608]
[1732127699683,0.0049,94116.0,94095.0,0.3608]
[1732127699885,0.053074,94099.0,94095.0,0.3608]
[1732127700278,0.053075,94097.0,94095.0,0.3608]
[1732127700685,0.3608,94096.0,94071.0,0.0049]
[1732127700892,0.4608,94100.0,94070.0,0.1865]
[1732127700893,0.1,94100.0,94076.0,0.3608]
[1732127701086,0.053078,94092.0,94076.0,0.413887]
[1732127701288,0.053078,94092.0,94084.0,0.3608]
[1732127701991,0.053079,94091.0,94084.0,0.3608]
[1732127702293,0.1,94100.0,94086.0,0.3608]
[1732127702690,0.1,94100.0,94077.0,0.3608]
[1732127702691,0.3608,94091.0,94077.0,0.3608]
[1732127702991,0.053086,94079.0,94077.0,0.3608]
[1732127703180,0.37213134,94078.0,94060.0,0.3608]
[1732127703383,0.053095,94063.0,94056.0,0.3608]
[1732127703593,0.01133134,94062.0,94056.0,0.3608]
[1732127703777,0.23630163,94086.0,94070.0,0.05309]
[1732127703778,0.02331943,94079.0,94070.0,0.05309]
[1732127703977,0.23630163,94086.0,94074.0,0.3608]
[1732127704182,0.23630163,94075.0,94056.0,0.3657]
[1732127704387,0.01846789,94074.0,94065.0,0.3608]
[1732127704693,0.053082,94084.0,94065.0,0.3608]
[1732127704888,0.053088,94074.0,94064.0,0.3608]
[1732127705084,0.01857716,94073.0,94065.0,0.053093]
[1732127705394,0.053093,94066.0,94064.0,0.3608]
[1732127705690,0.053102,94050.0,94049.0,8.363e-05]
[1732127706391,0.0049,94070.0,94059.0,0.053096]
[1732127706589,0.053089,94072.0,94049.0,8.363e-05]
[1732127706590,0.23630163,94063.0,94049.0,8.363e-05]
[1732127706787,0.01856197,94069.0,94023.0,0.0057]
[1732127706788,0.23630163,94050.0,94023.0,0.0057]
[1732127706994,0.23630163,94034.0,94011.0,0.24949264]
[1732127707186,0.053123,94012.0,93995.0,1.50152]
[1732127707380,0.0049,94024.0,94015.0,0.053121]
[1732127707584,0.23630163,94022.0,94010.0,0.3608]
[1732127707797,0.0049,94024.0,94023.0,0.053117]
[1732127708000,0.23630163,94025.0,94018.0,0.3608]
[1732127708183,0.053119,94020.0,94010.0,0.053124]
[1732127708382,0.053119,94020.0,94011.0,0.053123]
[1732127708597,0.01179761,94019.0,94011.0,0.053123]
[1732127708795,0.23630163,94014.0,94006.0,0.3608]
[1732127708991,0.053126,94008.0,94006.0,0.3608]
[1732127709299,0.01174155,94007.0,94006.0,0.413926]
[1732127709491,0.0049,94027.0,94013.0,0.053122]
[1732127709683,0.02123745,94035.0,94006.0,0.3608]
[1732127709684,0.053118,94021.0,94017.0,0.3608]
[1732127709890,0.053122,94015.0,94007.0,0.053126]
[1732127710101,0.053122,94015.0,94014.0,0.3608]
[1732127710501,0.0049,94031.0,94018.0,0.05312]
[1732127710502,0.053116,94025.0,94018.0,0.05312]
[1732127710683,0.053116,94025.0,94014.0,0.3608]
[1732127710684,0.01176235,94024.0,94014.0,0.3608]
[1732127710885,0.053121,94016.0,94014.0,0.3608]
[1732127711090,0.01176235,94015.0,94014.0,0.3608]
[1732127711289,0.053121,94016.0,94014.0,0.3608]
[1732127711491,0.0117607,94015.0,94014.0,0.3608]
[1732127711798,0.053131,93998.0,93996.0,0.00012718]
[1732127712095,0.053128,94004.0,93997.0,0.053131]
[1732127712396,0.0049,94021.0,93998.0,0.3608]
[1732127712698,0.3608,94024.0,94007.0,0.3608]
[1732127712699,0.053123,94012.0,94007.0,0.3608]
[1732127712890,0.05312,94018.0,94007.0,0.3608]
[1732127713091,0.01638032,94042.0,94015.0,0.3608]
[1732127713092,0.02124757,94026.0,94015.0,0.3608]
[1732127713296,0.053117,94023.0,94015.0,0.413921]
[1732127713499,0.01155601,94022.0,94015.0,0.413921]
[1732127713694,0.053117,94023.0,94015.0,0.413921]
[1732127713695,0.053121,94017.0,94015.0,0.3608]
[1732127713900,0.01155601,94016.0,94015.0,0.3608]
[1732127714396,0.01155601,94016.0,93996.0,0.00012718]
[1732127714397,0.03020292,94016.0,94008.0,0.3608]
[1732127714604,0.05313,94000.0,93998.0,0.3608]
[1732127714898,0.053132,93997.0,93996.0,0.30012718]
[1732127715096,0.01147702,93997.0,93996.0,0.66092718]
[1732127715397,0.01147702,93997.0,93996.0,0.71405918]
[1732127715596,0.01147702,93997.0,93996.0,0.41405918]
[1732127715797,0.0049,94017.0,94009.0,0.053124]
[1732127715997,0.3608,94024.0,94016.0,0.3608]
[1732127716205,0.053119,94019.0,94016.0,0.3608]
[1732127716499,0.02962527,94018.0,94016.0,0.6608]
[1732127716701,0.01139433,94017.0,94016.0,0.6608]
[1732127717795,0.053116,94026.0,94016.0,0.6608]
[1732127718000,0.053108,94039.0,94024.0,0.3608]
[1732127718201,0.35716,94052.0,94037.0,0.053109]
[1732127718202,0.053105,94045.0,94037.0,0.053109]
[1732127718386,0.07434757,94054.0,94050.0,0.053101]
[1732127718591,0.07434757,94054.0,94025.0,0.053116]
[1732127718592,0.01798448,94044.0,94041.0,0.3608]
[1732127718902,0.02128643,94063.0,94062.0,0.053095]
[1732127719094,0.01638643,94063.0,94062.0,0.053095]
[1732127719295,0.01638643,94082.0,94062.0,0.31892]
[1732127719494,0.0049,94091.0,94090.0,0.053079]
[1732127719692,0.0054,94112.0,94072.0,0.053089]
[1732127719693,0.0049,94115.0,94098.0,0.053074]
[1732127719892,0.053064,94118.0,94099.0,0.3608]
[1732127720101,0.053073,94102.0,94099.0,0.3608]
[1732127720394,0.053073,94101.0,94099.0,0.3608]
[1732127720597,0.02124663,94108.0,94094.0,0.3608]
[1732127720797,0.053078,94092.0,94085.0,0.3608]
[1732127720989,0.02124663,94108.0,94085.0,0.3608]
[1732127721187,0.02124663,94108.0,94062.0,0.07434163]
[1732127721188,0.053085,94079.0,94063.0,1.86236995]
[1732127721401,0.053093,94065.0,94063.0,0.00156995]
[1732127721790,0.053105,94044.0,94043.0,0.25174549]
[1732127721992,0.053105,94044.0,94043.0,0.25318549]
[1732127722503,0.0049,94064.0,94043.0,0.57074549]
[1732127722703,0.053096,94061.0,94053.0,0.3608]
[1732127723003,0.00012148,94063.0,94061.0,0.053095]
[1732127723188,0.00012148,94063.0,94062.0,0.3608]
[1732127723506,0.0049,94082.0,94062.0,0.67972]
[1732127723701,0.4,94100.0,94082.0,0.053083]
[1732127723702,0.0049,94088.0,94082.0,0.053083]
[1732127724006,0.07432463,94092.0,94091.0,0.00060095]
[1732127724210,0.4,94100.0,94091.0,0.00060095]
[1732127724503,4.758e-05,94099.0,94097.0,0.3608]
[1732127724705,4.758e-05,94099.0,94097.0,0.413875]
[1732127724895,4.758e-05,94099.0,94097.0,0.3608]
[1732127725091,4.758e-05,94099.0,94098.0,0.3608]
[1732127726198,4.758e-05,94099.0,94098.0,0.413875]
[1732127726895,0.0049,94119.0,94118.0,0.053063]
[1732127727102,0.053054,94134.0,94123.0,0.05306]
[1732127727403,0.02123043,94135.0,94123.0,0.05306]
[1732127727404,0.053055,94133.0,94126.0,0.3608]
[1732127728204,0.02123043,94135.0,94126.0,0.3608]
[1732127728395,0.3608,94132.0,94118.0,0.3608]
[1732127728795,0.23630163,94133.0,94108.0,1.5]
[1732127729001,0.3608,94124.0,94107.0,0.3618]
[1732127729195,0.02123043,94135.0,94107.0,0.001]
[1732127729196,0.23630163,94121.0,94107.0,0.001]
[1732127729504,0.23630163,94121.0,94099.0,1.5]
[1732127729692,0.053074,94099.0,94098.0,0.3]
[1732127729897,0.053074,94099.0,94096.0,0.3608]
[1732127730497,0.3608,94108.0,94096.0,0.3608]
[1732127730805,0.053075,94098.0,94096.0,0.3608]
[1732127731004,0.053066,94114.0,94096.0,0.3608]
[1732127731197,0.053067,94112.0,94096.0,0.3608]
[1732127731397,0.0049,94129.0,94096.0,0.3608]
[1732127731698,0.0049,94129.0,94100.0,0.053073]
[1732127731699,0.02122466,94115.0,94100.0,0.053073]
[1732127731901,0.05307,94107.0,94100.0,0.053073]
[1732127732103,0.053066,94114.0,94096.0,0.6608]
[1732127732300,0.053071,94104.0,94096.0,0.6608]
[1732127732705,0.3608,94108.0,94096.0,0.6608]
[1732127733005,0.053066,94114.0,94096.0,0.6608]
[1732127733006,0.053075,94098.0,94096.0,0.6608]
[1732127733897,0.3608,94097.0,94096.0,0.3]
[1732127734093,0.6796,94097.0,94092.0,9.401e-05]
[1732127734405,0.053096,94061.0,94059.0,0.0049]
[1732127734714,0.31884,94096.0,94038.0,0.2533406]
[1732127734715,0.23630163,94060.0,94038.0,0.2533406]
[1732127734905,0.3608,94059.0,94038.0,0.2533406]
[1732127735101,0.3608,94068.0,94041.0,0.053107]
[1732127735102,0.053093,94065.0,94041.0,0.053107]
[1732127735297,7.709e-05,94064.0,94038.0,0.00159511]
[1732127735602,0.0531,94054.0,94050.0,0.3608]
[1732127735811,7.709e-05,94064.0,94050.0,0.3608]
[1732127736202,7.709e-05,94064.0,94057.0,0.053097]
[1732127736400,7.709e-05,94064.0,94050.0,0.3608]
[1732127736699,7.709e-05,94064.0,94063.0,0.3608]
[1732127736894,0.364475,94097.0,94083.0,0.053083]
[1732127736895,0.0049,94084.0,94083.0,0.053083]
[1732127737096,0.3,94097.0,94081.0,0.3608]
[1732127737297,0.353075,94097.0,94089.0,0.3608]
[1732127737509,0.3,94097.0,94094.0,0.053076]
[1732127737698,0.3,94097.0,94089.0,0.3608]
[1732127737902,0.353075,94097.0,94089.0,0.3608]
[1732127738199,0.3,94097.0,94078.0,0.3608]
[1732127738507,0.053089,94072.0,94070.0,0.36204]
[1732127738699,0.3608,94079.0,94073.0,0.053088]
[1732127738700,0.00064,94079.0,94073.0,0.053088]
[1732127738901,0.053083,94083.0,94073.0,0.053088]
[1732127739104,0.3608,94084.0,94083.0,0.053083]
[1732127739407,0.3658,94100.0,94098.0,0.053074]
[1732127739408,0.00056001,94100.0,94098.0,0.053074]
[1732127739611,0.3608,94114.0,94099.0,0.3608]
[1732127739906,0.053069,94108.0,94100.0,0.053073]
[1732127740111,0.36140001,94114.0,94099.0,0.3608]
[1732127740304,0.05307,94107.0,94099.0,0.413874]
[1732127740500,0.3608,94114.0,94099.0,0.3608]
[1732127740501,0.00060001,94114.0,94099.0,0.3608]
[1732127740702,0.00060001,94114.0,94109.0,0.053068]
[1732127740900,0.00056001,94124.0,94109.0,0.053068]
[1732127740901,0.053063,94118.0,94109.0,0.053068]
[1732127741101,0.00056001,94124.0,94107.0,0.3608]
[1732127741408,0.00056001,94124.0,94115.0,0.3608]
[1732127742005,0.00056001,94124.0,94122.0,0.053061]
[1732127742207,0.00056001,94124.0,94123.0,0.3608]
[1732127742805,0.053057,94130.0,94123.0,0.3608]
[1732127743003,0.053057,94130.0,94123.0,0.41386]
[1732127743206,0.053057,94130.0,94123.0,0.3608]
[1732127743414,0.0049,94143.0,94123.0,0.3608]
[1732127743415,0.02122757,94136.0,94123.0,0.3608]
[1732127743618,0.053055,94134.0,94131.0,0.3608]
[1732127743905,0.053055,94133.0,94131.0,0.3608]
[1732127744116,0.35692,94150.0,94131.0,0.3608]
[1732127744408,0.053047,94147.0,94132.0,0.053055]
[1732127744605,0.0049,94161.0,94131.0,0.3608]
[1732127744813,0.053038,94163.0,94152.0,0.053044]
[1732127745109,0.053039,94161.0,94152.0,0.053044]
[1732127745311,0.35688,94178.0,94157.0,0.3608]
[1732127745508,0.0104427,94177.0,94172.0,0.23630163]
[1732127745805,0.03167027,94177.0,94174.0,0.053031]
[1732127746014,0.02122757,94177.0,94175.0,0.053031]
[1732127746313,0.35688,94178.0,94175.0,0.053031]
[1732127746509,0.35688,94178.0,94173.0,0.3608]
[1732127746716,0.35688,94178.0,94176.0,0.05303]
[1732127748013,0.0049,94195.0,94190.0,0.053022]
[1732127748207,0.053021,94194.0,94185.0,0.3608]
[1732127748607,0.1,94200.0,94198.0,0.053018]
[1732127748905,0.1,94200.0,94193.0,0.3608]
[1732127749108,0.053023,94189.0,94185.0,0.3608]
[1732127749530,0.053021,94194.0,94185.0,0.3608]
[1732127749816,0.1,94200.0,94185.0,0.3608]
[1732127750510,0.1,94200.0,94193.0,0.3608]
[1732127751021,0.1,94200.0,94198.0,0.053018]
[1732127751515,0.1,94200.0,94199.0,0.31848]
[1732127751910,0.1,94200.0,94198.0,0.053018]
[1732127753720,0.1,94200.0,94196.0,0.3608]
[1732127753923,0.053024,94188.0,94186.0,0.3608]
[1732127754319,0.053024,94188.0,94166.0,0.3608]
[1732127754320,0.3608,94188.0,94166.0,0.3608]
[1732127754618,0.3608,94188.0,94155.0,0.3608]
[1732127754619,0.3608,94180.0,94155.0,0.3608]
[1732127754821,0.053036,94167.0,94156.0,0.053041]
[1732127755122,0.053036,94167.0,94155.0,0.3608]
[1732127755327,0.3186,94166.0,94155.0,0.3608]
[1732127755512,0.3186,94166.0,94145.0,0.3608]
[1732127755717,0.3186,94166.0,94130.0,0.3608]
[1732127755912,0.3186,94166.0,94165.0,6.92e-06]
[1732127756321,0.053056,94131.0,94128.0,0.0049]
[1732127756522,0.3608,94136.0,94121.0,0.3608]
[1732127757043,0.053058,94127.0,94121.0,0.3608]
[1732127757215,0.0001078,94126.0,94121.0,0.3608]
[1732127757612,0.0531668,94126.0,94121.0,0.3608]
[1732127757824,0.053061,94123.0,94121.0,0.3608]
[1732127758032,0.053067,94112.0,94110.0,0.3608]
[1732127758233,0.3608,94111.0,94101.0,0.00116]
[1732127758420,0.053072,94102.0,94094.0,0.3608]
[1732127758932,0.053072,94102.0,94095.0,1.5]
[1732127759124,0.3608,94111.0,94089.0,0.05316248]
[1732127759432,0.053075,94098.0,94089.0,0.05316248]
[1732127759634,0.3608,94097.0,94089.0,8.348e-05]
[1732127759826,0.053079,94091.0,94089.0,8.348e-05]
[1732127760031,0.28938063,94091.0,94089.0,8.348e-05]
[1732127760729,0.053079,94091.0,94089.0,8.348e-05]
[1732127761233,0.36144,94095.0,94089.0,8.348e-05]
[1732127761425,0.00066781,94096.0,94089.0,8.348e-05]
[1732127761625,0.0001078,94096.0,94089.0,0.05316248]
[1732127762023,0.0001078,94096.0,94089.0,8.348e-05]
[1732127762335,0.0001078,94096.0,94094.0,0.053076]
[1732127762942,0.0001078,94096.0,94095.0,0.31884]
[1732127763128,0.0001078,94096.0,94094.0,0.053076]
[1732127763324,0.0049,94113.0,94112.0,0.053067]
[1732127763632,0.35676,94127.0,94112.0,0.053067]
[1732127763633,0.053059,94126.0,94112.0,0.053067]
[1732127763935,0.053059,94126.0,94106.0,0.3608]
[1732127764233,0.05306,94124.0,94114.0,0.053065]
[1732127764435,0.05306,94124.0,94106.0,0.3608]
[1732127764436,0.35676,94127.0,94106.0,0.3608]
[1732127764825,0.35676,94127.0,94117.0,0.053063]
[1732127765026,0.35676,94127.0,94106.0,0.3608]
[1732127765229,0.35676,94127.0,94123.0,0.05306]
[1732127765631,0.35676,94127.0,94114.0,0.053065]
[1732127765836,0.23630163,94123.0,94106.0,0.3608]
[1732127766034,0.3608,94117.0,94106.0,0.3608]
[1732127766238,0.23630163,94123.0,94106.0,0.3608]
[1732127766537,0.053066,94114.0,94106.0,0.3608]
[1732127767338,0.053066,94114.0,94106.0,0.41387]
[1732127769145,0.00060001,94118.0,94106.0,0.3608]
[1732127769337,0.35676,94127.0,94106.0,0.3608]
[1732127769338,0.3608,94119.0,94106.0,0.3608]
[1732127769646,0.053068,94111.0,94106.0,0.3608]
[1732127770233,0.36136001,94117.0,94106.0,0.3608]
[1732127770234,0.053068,94109.0,94106.0,0.3608]
[1732127770541,0.36136001,94117.0,94106.0,0.3608]